fUST/lending_fUST_20250725
["ID","MTS","AMOUNT","RATE_DAILY","PERIOD"]
[374616389,1753379449568,-1021.0,0.00022199,2]
[374616390,1753379449577,-460.0,0.00022202,2]
[374616391,1753379449587,-780.28,0.00022202,2]
[374616392,1753379449596,-997.16,0.00022202,2]
[374616393,1753379449697,-460.0,0.00022202,2]
[374616394,1753379449707,-475.55,0.00022202,2]
[374616395,1753379449717,-395.72944575,0.00022202,2]
[374616396,1753379449726,-460.0,0.00022202,2]
[374616397,1753379449735,-3179.56,0.00022202,2]
[374616398,1753379449745,-460.0,0.00022202,2]
[374616399,1753379449754,-653.68,0.00022202,2]
[374616400,1753379449764,-460.0,0.00022203,2]
[374616401,1753379449773,-460.0,0.00022203,2]
[374616402,1753379449783,-1014.02,0.00022203,2]
[374616403,1753379449792,-460.0,0.00022203,2]
[374616404,1753379449802,-820.35,0.00022203,2]
[374616405,1753379449812,-1580.94,0.00022203,2]
[374616406,1753379449821,-1718.3,0.00022203,2]
[374616407,1753379449831,-969.32,0.00022203,2]
[374616408,1753379449840,-632.48,0.00022203,2]
[374616409,1753379449850,-589.64,0.00022203,2]
[374616410,1753379449860,-460.0,0.00022203,2]
[374616411,1753379449870,-460.0,0.00022203,2]
[374616412,1753379449882,-1174.77,0.00022205,2]
[374616413,1753379449892,-424.87060069,0.00022206,2]
[374616414,1753379449902,-1174.45347292,0.00022216,2]
[374616415,1753379449912,-1000.0,0.00022221,2]
[374616416,1753379449922,-25000.0,0.0002223,2]
[374616417,1753379449932,-153.0,0.00022247,2]
[374616418,1753379449942,-153.0,0.00022247,2]
[374616419,1753379449952,-153.0,0.00022247,2]
[374616420,1753379449961,-392.78714662,0.00022285,2]
[374616421,1753379449971,-725.31371795,0.00022285,2]
[374616422,1753379449981,-151.0,0.000223,6]
[374616423,1753379449990,-1213.91924661,0.00022348,7]
[374616424,1753379450000,-500.0,0.00022373,2]
[374616425,1753379450011,-360.0,0.00022388,2]
[374616426,1753379450021,-151.0,0.0002239,7]
[374616427,1753379450030,-7969.55000289,0.0002239,2]
[374616428,1753379450141,-83269.03555639,0.0002239,2]
[374616429,1753379450151,-1619.23,0.00022465,2]
[374616430,1753379450161,-265.31149077,0.00022473,2]
[374616431,1753379450171,-1038.1,0.00022473,2]
[374616432,1753379450181,-3012.5,0.00022473,2]
[374616433,1753379450191,-1634.15,0.00022473,2]
[374616434,1753379450201,-850.99,0.00022473,2]
[374616435,1753379450212,-1021.0,0.00022473,2]
[374616436,1753379450221,-460.0,0.00022476,2]
[374616437,1753379450232,-780.28,0.00022476,2]
[374616438,1753379450241,-997.16,0.00022476,2]
[374616439,1753379450251,-460.0,0.00022476,2]
[374616440,1753379450261,-475.55,0.00022476,2]
[374616441,1753379450271,-460.0,0.00022476,2]
[374616442,1753379450281,-3179.56,0.00022476,2]
[374616443,1753379450290,-460.0,0.00022476,2]
[374616444,1753379450299,-653.68,0.00022476,2]
[374616445,1753379450309,-460.0,0.00022477,2]
[374616446,1753379450319,-460.0,0.00022477,2]
[374616447,1753379450328,-1014.02,0.00022477,2]
[374616448,1753379450338,-460.0,0.00022477,2]
[374616449,1753379450348,-820.35,0.00022477,2]
[374616450,1753379450357,-1580.94,0.00022477,2]
[374616451,1753379450367,-1718.3,0.00022477,2]
[374616452,1753379450376,-969.32,0.00022477,2]
[374616453,1753379450388,-632.48,0.00022477,2]
[374616454,1753379450399,-589.64,0.00022477,2]
[374616455,1753379450409,-460.0,0.00022477,2]
[374616456,1753379450419,-460.0,0.00022477,2]
[374616457,1753379450429,-1174.77,0.00022479,2]
[374616458,1753379450439,-151.0,0.00022479,7]
[374616459,1753379450449,-151.0,0.00022481,7]
[374616460,1753379450458,-151.0,0.00022481,7]
[374616461,1753379450468,-186.976971,0.00022481,7]
[374616462,1753379450478,-186.976971,0.00022481,7]
[374616463,1753379450487,-151.0,0.00022481,7]
[374616464,1753379450497,-36437.3315752,0.0002249,7]
[374616465,1753379450506,-183.586108,0.0002249,7]
[374616466,1753379450515,-183.586108,0.0002249,7]
[374616467,1753379450525,-151.0,0.0002249,7]
[374616468,1753379450534,-151.0,0.0002249,7]
[374616469,1753379450543,-151.181492,0.0002249,7]
[374616470,1753379450553,-160.0,0.0002249,7]
[374616471,1753379450562,-214.7213231,0.0002249,7]
[374616472,1753379450574,-12624.810388,0.0002249,7]
[374616473,1753379450583,-164.352872,0.0002249,7]
[374616474,1753379450592,-164.352872,0.0002249,7]
[374616475,1753379450602,-476.79463412,0.0002249,7]
[374616476,1753379450612,-1504.62,0.000225,7]
[374616477,1753379450622,-166.67,0.000225,2]
[374616478,1753379450631,-2256.0,0.0002253,2]
[374616479,1753379450643,-1213.91924661,0.00022555,7]
[374616480,1753379450652,-151.0,0.0002256,7]
[374616481,1753379450661,-151.0,0.0002256,7]
[374616482,1753379450670,-151.0,0.0002256,7]
[374616483,1753379450680,-151.0,0.0002258,7]
[374616484,1753379450689,-151.0,0.0002258,7]
[374616485,1753379450699,-151.0,0.0002258,7]
[374616486,1753379450709,-151.0,0.00022582,7]
[374616487,1753379450719,-2256.0,0.00022599,2]
[374616488,1753379450728,-1087.59,0.000226,7]
[374616489,1753379450737,-171.57040078,0.00022651,2]
[374616490,1753379450747,-500.0,0.00022736,2]
[374616491,1753379450756,-500.0,0.00022736,2]
[374616492,1753379450766,-500.69980759,0.00022736,2]
[374616493,1753379450776,-160.11934557,0.00022736,2]
[374616494,1753379450785,-500.35759823,0.00022736,2]
[374616495,1753379450795,-151.0,0.00022746,7]
[374616496,1753379450804,-151.0,0.00022746,7]
[374616497,1753379450814,-151.387848,0.00022746,7]
[374616498,1753379450823,-151.0,0.00022746,7]
[374616499,1753379450833,-151.0,0.00022746,7]
[374616500,1753379450843,-151.0,0.00022746,7]
[374616501,1753379450852,-151.0,0.00022746,7]
[374616502,1753379450862,-248.767287,0.00022746,7]
[374616503,1753379450871,-248.767287,0.00022746,7]
[374616504,1753379450881,-1038.1,0.00022747,2]
[374616505,1753379450893,-3012.5,0.00022747,2]
[374616506,1753379450903,-1634.15,0.00022747,2]
[374616507,1753379450912,-850.99,0.00022747,2]
[374616508,1753379450922,-1021.0,0.00022747,2]
[374616509,1753379450932,-460.0,0.0002275,2]
[374616510,1753379450941,-780.28,0.0002275,2]
[374616511,1753379450951,-997.16,0.0002275,2]
[374616512,1753379450960,-460.0,0.0002275,2]
[374616513,1753379450970,-475.55,0.0002275,2]
[374616514,1753379450980,-460.0,0.0002275,2]
[374616515,1753379450990,-3179.56,0.0002275,2]
[374616516,1753379451000,-460.0,0.0002275,2]
[374616517,1753379451011,-653.68,0.0002275,2]
[374616518,1753379451021,-460.0,0.00022751,2]
[374616519,1753379451030,-460.0,0.00022751,2]
[374616520,1753379451041,-1014.02,0.00022751,2]
[374616521,1753379451050,-460.0,0.00022751,2]
[374616522,1753379451060,-820.35,0.00022751,2]
[374616523,1753379451071,-1580.94,0.00022751,2]
[374616524,1753379451082,-1718.3,0.00022751,2]
[374616525,1753379451092,-969.32,0.00022751,2]
[374616526,1753379451101,-632.48,0.00022751,2]
[374616527,1753379451111,-589.64,0.00022751,2]
[374616528,1753379451122,-460.0,0.00022751,2]
[374616529,1753379451133,-460.0,0.00022751,2]
[374616530,1753379451144,-1174.77,0.00022753,2]
[374616531,1753379451154,-151.0,0.00022755,7]
[374616532,1753379451163,-151.0,0.00022755,7]
[374616533,1753379451173,-1213.91924661,0.00022762,7]
[374616534,1753379451183,-1500.0,0.00022768,2]
[374616535,1753379451192,-1138.0,0.00022798,2]
[374616536,1753379451202,-435.61711918,0.000228,2]
[374616537,1753379451212,-321.18829,0.000228,7]
[374616538,1753379451221,-321.18829,0.000228,7]
[374616539,1753379451231,-246.557261,0.000228,7]
[374616540,1753379451241,-246.557261,0.000228,7]
[374616541,1753379451250,-1138.0,0.00022802,2]
[374616542,1753379451261,-151.733625,0.00022854,7]
[374616543,1753379451271,-151.0,0.00022854,7]
[374616544,1753379451281,-151.0,0.00022854,7]
[374616545,1753379451292,-151.0,0.00022854,7]
[374616546,1753379451302,-151.0,0.00022866,7]
[374616547,1753379451312,-1000.0,0.00022921,2]
[374616548,1753379451322,-460.0,0.00022936,2]
[374616549,1753379451332,-1138.0,0.0002295,2]
[374616550,1753379451341,-1213.91924661,0.00022969,8]
[374616551,1753379451351,-1138.0,0.00022975,2]
[374616552,1753379451362,-1418.48624846,0.00022993,2]
[374616553,1753379451371,-3000.0,0.00023,2]
[374616554,1753379451381,-231.16387093,0.00023,3]
[374616555,1753379451396,-849.243154,0.00023,7]
[374616556,1753379451405,-160.0,0.00023,2]
[374616557,1753379451414,-160.0,0.00023,3]
[374616558,1753379451423,-160.0,0.00023,3]
[374616559,1753379451433,-160.0,0.00023,3]
[374616560,1753379451443,-3000.0,0.0002301,2]
[374616561,1753379451452,-166.67,0.00023013,2]
[374616562,1753379451462,-3000.0,0.0002302,2]
[374616563,1753379451472,-1038.1,0.00023021,2]
[374616564,1753379451481,-3012.5,0.00023021,2]
[374616565,1753379451491,-1634.15,0.00023021,2]
[374616566,1753379451501,-850.99,0.00023021,2]
[374616567,1753379451511,-1021.0,0.00023021,2]
[374616568,1753379451520,-460.0,0.00023024,2]
[374616569,1753379451530,-780.28,0.00023024,2]
[374616570,1753379451539,-997.16,0.00023024,2]
[374616571,1753379451549,-460.0,0.00023024,2]
[374616572,1753379451559,-475.55,0.00023024,2]
[374616573,1753379451568,-460.0,0.00023024,2]
[374616574,1753379451578,-3179.56,0.00023024,2]
[374616575,1753379451587,-653.68,0.00023024,2]
[374616576,1753379451597,-460.0,0.00023024,2]
[374616577,1753379451607,-460.0,0.00023025,2]
[374616578,1753379451616,-460.0,0.00023025,2]
[374616579,1753379451625,-1014.02,0.00023025,2]
[374616580,1753379451635,-460.0,0.00023025,2]
[374616581,1753379451648,-820.35,0.00023025,2]
[374616582,1753379451658,-1580.94,0.00023025,2]
[374616583,1753379451667,-1718.3,0.00023025,2]
[374616584,1753379451677,-969.32,0.00023025,2]
[374616585,1753379451687,-632.48,0.00023025,2]
[374616586,1753379451697,-589.64,0.00023025,2]
[374616587,1753379451707,-460.0,0.00023025,2]
[374616589,1753379451807,-460.0,0.00023025,2]
[374616590,1753379451818,-1174.77,0.00023027,2]
[374616591,1753379451828,-3000.0,0.0002303,2]
[374616592,1753379451838,-217.0,0.00023038,2]
[374616593,1753379451847,-3000.0,0.0002304,2]
[374616594,1753379451857,-3000.0,0.0002305,2]
[374616595,1753379451868,-3000.0,0.0002306,2]
[374616596,1753379451877,-3000.0,0.0002307,2]
[374616597,1753379451890,-500.0,0.00023073,2]
[374616598,1753379451899,-3000.0,0.0002308,2]
[374616599,1753379451909,-3000.0,0.0002309,2]
[374616600,1753379451918,-3000.0,0.000231,2]
[374616601,1753379451928,-151.0,0.000231,10]
[374616602,1753379451938,-3247.13,0.000231,7]
[374616603,1753379451948,-28926.21,0.000231,2]
[374616604,1753379451958,-151.0,0.000231,7]
[374616605,1753379451967,-3000.0,0.0002311,2]
[374616606,1753379451977,-3000.0,0.0002312,2]
[374616607,1753379451986,-151.0,0.00023128,7]
[374616608,1753379451995,-337.09095,0.00023128,7]
[374616609,1753379452005,-337.09095,0.00023128,7]
[374616610,1753379452014,-3000.0,0.0002313,2]
[374616611,1753379452024,-3000.0,0.0002314,2]
[374616612,1753379452033,-3000.0,0.0002315,2]
[374616613,1753379452042,-429.7456075,0.00023151,2]
[374616614,1753379452051,-429.7456075,0.00023151,2]
[374616615,1753379452060,-429.7456075,0.00023151,2]
[374616616,1753379452070,-429.7456075,0.00023151,2]
[374616617,1753379452081,-429.7456075,0.00023151,2]
[374616618,1753379452090,-429.7456075,0.00023151,2]
[374616619,1753379452099,-429.7456075,0.00023151,2]
[374616620,1753379452108,-429.7456075,0.00023151,2]
[374616621,1753379452119,-429.7456075,0.00023151,2]
[374616622,1753379452127,-429.7456075,0.00023151,2]
[374616623,1753379452138,-859.491215,0.00023151,2]
[374616624,1753379452148,-3000.0,0.0002316,2]
[374616625,1753379452158,-151.0,0.0002316,7]
[374616626,1753379452168,-151.0,0.0002316,7]
[374616627,1753379452179,-151.0,0.0002316,7]
[374616628,1753379452189,-186.976971,0.0002316,7]
[374616629,1753379452200,-186.976971,0.0002316,7]
[374616630,1753379452210,-151.0,0.0002316,7]
[374616631,1753379452220,-3000.0,0.0002317,2]
[374616632,1753379452230,-1213.91924661,0.00023176,8]
[374616633,1753379452240,-151.0,0.00023176,7]
[374616634,1753379452250,-151.0,0.00023176,7]
[374616635,1753379452259,-151.0,0.00023176,7]
[374616636,1753379452269,-3000.0,0.0002318,2]
[374616637,1753379452279,-3000.0,0.0002319,2]
[374616638,1753379452288,-151.0,0.0002319,7]
[374616639,1753379452298,-151.0,0.0002319,7]
[374616640,1753379452307,-151.0,0.0002319,7]
[374616641,1753379452317,-151.0,0.0002319,7]
[374616642,1753379452327,-151.0,0.0002319,7]
[374616643,1753379452337,-151.0,0.0002319,7]
[374616644,1753379452347,-151.0,0.0002319,7]
[374616645,1753379452357,-151.0,0.0002319,7]
[374616646,1753379452367,-3000.0,0.000232,2]
[374616647,1753379452376,-151.183589,0.000232,7]
[374616648,1753379452386,-176.465747,0.000232,7]
[374616649,1753379452396,-151.0,0.000232,7]
[374616650,1753379452405,-151.0,0.000232,7]
[374616651,1753379452415,-151.0,0.000232,7]
[374616652,1753379452425,-151.0,0.000232,7]
[374616653,1753379452434,-151.0,0.000232,7]
[374616654,1753379452446,-183.586108,0.000232,7]
[374616655,1753379452456,-183.586108,0.000232,7]
[374616656,1753379452466,-151.0,0.000232,7]
[374616657,1753379452475,-151.0,0.000232,7]
[374616658,1753379452485,-3000.0,0.0002321,2]
[374616659,1753379452495,-151.0,0.0002321,7]
[374616660,1753379452505,-151.0,0.0002321,7]
[374616661,1753379452514,-3000.0,0.0002322,2]
[374616662,1753379452524,-288.914754,0.0002322,7]
[374616663,1753379452534,-151.0,0.0002322,7]
[374616664,1753379452544,-250.0,0.00023226,2]
[374616665,1753379452554,-3000.0,0.0002323,2]
[374616666,1753379452563,-500.0,0.00023237,2]
[374616667,1753379452573,-151.0,0.00023237,2]
[374616668,1753379452583,-151.0,0.00023237,2]
[374616669,1753379452592,-559.0,0.00023237,2]
[374616670,1753379452601,-770.0,0.00023237,2]
[374616671,1753379452611,-151.0,0.00023237,2]
[374616672,1753379452621,-151.0,0.00023237,2]
[374616673,1753379452631,-210.42481086,0.00023237,2]
[374616674,1753379452641,-641.0,0.00023237,2]
[374616675,1753379452650,-500.0,0.00023237,2]
[374616676,1753379452660,-151.0,0.00023237,2]
[374616677,1753379452669,-151.0,0.00023237,2]
[374616678,1753379452679,-198.0,0.00023237,2]
[374616679,1753379452688,-1138.0,0.00023239,2]
[374616680,1753379452697,-3000.0,0.0002324,2]
[374616681,1753379452706,-3000.0,0.0002325,2]
[374616682,1753379452716,-3000.0,0.0002326,2]
[374616683,1753379452725,-3000.0,0.0002327,2]
[374616684,1753379452734,-534.88,0.00023272,3]
[374616685,1753379452744,-1138.0,0.00023279,2]
[374616686,1753379452753,-3000.0,0.0002328,2]
[374616687,1753379452762,-517.02,0.00023281,4]
[374616688,1753379452771,-1001.487689,0.00023284,2]
[374616689,1753379452780,-3000.0,0.0002329,2]
[374616690,1753379452790,-151.0,0.0002329,7]
[374616691,1753379452799,-1038.1,0.00023295,2]
[374616692,1753379452808,-3012.5,0.00023295,2]
[374616693,1753379452817,-1634.15,0.00023295,2]
[374616694,1753379452827,-850.99,0.00023295,2]
[374616695,1753379452836,-1021.0,0.00023295,2]
[374616696,1753379452846,-460.0,0.00023298,2]
[374616697,1753379452856,-780.28,0.00023298,2]
[374616698,1753379452865,-997.16,0.00023298,2]
[374616699,1753379452875,-460.0,0.00023298,2]
[374616700,1753379452884,-475.55,0.00023298,2]
[374616701,1753379452897,-460.0,0.00023298,2]
[374616702,1753379452906,-3179.56,0.00023298,2]
[374616703,1753379452916,-653.68,0.00023298,2]
[374616704,1753379452926,-460.0,0.00023298,2]
[374616705,1753379452936,-460.0,0.00023299,2]
[374616706,1753379452945,-460.0,0.00023299,2]
[374616707,1753379452955,-1014.02,0.00023299,2]
[374616708,1753379452965,-460.0,0.00023299,2]
[374616709,1753379452975,-820.35,0.00023299,2]
[374616710,1753379452984,-1580.94,0.00023299,2]
[374616711,1753379452994,-1718.3,0.00023299,2]
[374616712,1753379453004,-969.32,0.00023299,2]
[374616713,1753379453013,-632.48,0.00023299,2]
[374616714,1753379453023,-589.64,0.00023299,2]
[374616715,1753379453033,-460.0,0.00023299,2]
[374616716,1753379453043,-164.352872,0.00023299,7]
[374616717,1753379453052,-164.352872,0.00023299,7]
[374616718,1753379453063,-460.0,0.00023299,2]
[374616719,1753379453076,-3000.0,0.000233,2]
[374616720,1753379453085,-151.0,0.000233,7]
[374616721,1753379453095,-151.0,0.000233,7]
[374616722,1753379453105,-1174.77,0.00023301,2]
[374616723,1753379453115,-151.0,0.00023303,7]
[374616724,1753379453124,-849.243154,0.00023303,7]
[374616725,1753379453135,-849.243154,0.00023303,7]
[374616726,1753379453149,-3000.0,0.0002331,2]
[374616727,1753379453160,-542.18048329,0.00023316,2]
[374616728,1753379453169,-3000.0,0.0002332,2]
[374616729,1753379453179,-231.28369723,0.00023324,2]
[374616730,1753379453188,-151.0,0.00023326,7]
[374616731,1753379453198,-151.0,0.00023326,7]
[374616732,1753379453208,-151.0,0.00023326,7]
[374616733,1753379453218,-151.0,0.00023326,7]
[374616734,1753379453227,-248.767287,0.00023326,7]
[374616735,1753379453237,-248.767287,0.00023326,7]
[374616736,1753379453247,-3000.0,0.0002333,2]
[374616737,1753379453256,-151.0,0.0002333,7]
[374616738,1753379453265,-151.0,0.0002333,7]
[374616739,1753379453275,-151.0,0.0002333,7]
[374616740,1753379453284,-275.33301,0.0002333,7]
[374616741,1753379453293,-159.414971,0.0002333,7]
[374616742,1753379453303,-159.414971,0.0002333,7]
[374616743,1753379453312,-151.0,0.0002333,7]
[374616744,1753379453321,-151.0,0.0002333,7]
[374616745,1753379453330,-202.24641,0.0002333,7]
[374616746,1753379453340,-202.24641,0.0002333,7]
[374616747,1753379453350,-76562.8406976,0.0002333,2]
[374616748,1753379453359,-3000.0,0.0002334,2]
[374616749,1753379453369,-3000.0,0.0002335,2]
[374616750,1753379453379,-3000.0,0.0002336,2]
[374616751,1753379453389,-3000.0,0.0002337,2]
[374616752,1753379453399,-534.88,0.00023372,6]
[374616753,1753379453408,-613.72738664,0.00023373,2]
[374616754,1753379453418,-209.42685915,0.00023373,2]
[374616755,1753379453427,-500.0,0.00023373,2]
[374616756,1753379453437,-500.0,0.00023373,2]
[374616757,1753379453447,-500.0,0.00023373,2]
[374616758,1753379453456,-1128.0,0.00023376,2]
[374616759,1753379453465,-3000.0,0.0002338,2]
[374616760,1753379453475,-517.02,0.00023381,4]
[374616761,1753379453485,-1213.91924661,0.00023383,9]
[374616762,1753379453494,-3000.0,0.0002339,2]
[374616763,1753379453503,-3000.0,0.000234,2]
[374616764,1753379453513,-1126.60340077,0.000234,2]
[374616765,1753379453523,-151.0,0.000234,7]
[374616766,1753379453532,-151.0,0.000234,7]
[374616767,1753379453541,-151.0,0.000234,7]
[374616768,1753379453550,-151.0,0.000234,7]
[374616769,1753379453559,-321.18829,0.000234,7]
[374616770,1753379453568,-321.18829,0.000234,7]
[374616771,1753379453576,-246.557261,0.000234,7]
[374616772,1753379453584,-246.557261,0.000234,7]
[374616773,1753379453594,-151.0,0.00023402,7]
[374616774,1753379453603,-337.09095,0.00023402,7]
[374616775,1753379453613,-337.09095,0.00023402,7]
[374616776,1753379453623,-587.0,0.00023408,2]
[374616777,1753379453632,-3000.0,0.0002341,2]
[374616778,1753379453644,-3000.0,0.0002342,2]
[374616779,1753379453653,-4636.115502,0.0002343,2]
[374616780,1753379453663,-1500.0,0.00023468,2]
[374616781,1753379453672,-534.88,0.00023472,3]
[374616782,1753379453681,-1138.0,0.00023472,2]
[374616783,1753379453691,-217.0,0.00023475,2]
[374616784,1753379453700,-517.02,0.00023481,6]
[374616785,1753379453710,-560.0,0.00023484,2]
[374616786,1753379453719,-1725.0,0.0002349,2]
[374616787,1753379453729,-1504.62,0.000235,7]
[374616788,1753379453738,-1138.0,0.00023508,2]
[374616789,1753379453748,-500.0,0.00023511,2]
[374616790,1753379453848,-173.7533436,0.00023511,2]
[374616791,1753379453859,-151.0,0.00023511,2]
[374616792,1753379453869,-559.0,0.00023511,2]
[374616793,1753379453879,-770.0,0.00023511,2]
[374616794,1753379453891,-151.0,0.00023511,2]
[374616795,1753379453900,-151.0,0.00023511,2]
[374616796,1753379453909,-641.0,0.00023511,2]
[374616797,1753379453919,-507.36597427,0.00023511,2]
[374616798,1753379453928,-295.92705688,0.00023511,2]
[374616799,1753379453938,-151.0,0.00023511,2]
[374616800,1753379453948,-1138.0,0.00023514,2]
[374616801,1753379453957,-166.67,0.00023519,2]
[374616802,1753379453967,-200.129568,0.00023562,2]
[374616803,1753379453976,-577.6552115,0.00023562,2]
[374616804,1753379453986,-154.6022915,0.00023562,2]
[374616805,1753379453995,-306.1586121,0.00023562,2]
[374616806,1753379454005,-159.9507963,0.00023562,2]
[374616807,1753379454014,-153.0,0.00023562,2]
[374616808,1753379454024,-159.9507963,0.00023562,2]
[374616809,1753379454033,-178.2667198,0.00023562,2]
[374616810,1753379454043,-577.6552115,0.00023562,2]
[374616811,1753379454052,-178.2667198,0.00023562,2]
[374616812,1753379454062,-577.6552115,0.00023562,2]
[374616813,1753379454073,-159.9507963,0.00023562,2]
[374616814,1753379454084,-153.0,0.00023562,2]
[374616815,1753379454094,-178.3912236,0.00023562,2]
[374616816,1753379454103,-577.6552115,0.00023562,2]
[374616817,1753379454113,-159.9507963,0.00023562,2]
[374616818,1753379454122,-153.0,0.00023562,2]
[374616819,1753379454132,-159.9507963,0.00023562,2]
[374616820,1753379454144,-577.6552115,0.00023562,2]
[374616821,1753379454154,-178.2667198,0.00023562,2]
[374616822,1753379454165,-159.9507963,0.00023562,2]
[374616823,1753379454174,-1035.6901492,0.00023562,2]
[374616824,1753379454183,-178.2667198,0.00023562,2]
[374616825,1753379454193,-178.2667198,0.00023562,2]
[374616826,1753379454202,-159.9507963,0.00023562,2]
[374616827,1753379454211,-153.0,0.00023562,2]
[374616828,1753379454222,-159.9507963,0.00023562,2]
[374616829,1753379454231,-178.2667198,0.00023562,2]
[374616830,1753379454240,-159.2354349,0.00023562,2]
[374616831,1753379454250,-178.2667198,0.00023562,2]
[374616832,1753379454259,-178.2667198,0.00023562,2]
[374616833,1753379454269,-178.2667198,0.00023562,2]
[374616834,1753379454278,-1038.1,0.00023569,2]
[374616835,1753379454287,-3012.5,0.00023569,2]
[374616836,1753379454299,-1634.15,0.00023569,2]
[374616837,1753379454308,-850.99,0.00023569,2]
[374616838,1753379454318,-1021.0,0.00023569,2]
[374616839,1753379454327,-460.0,0.00023572,2]
[374616840,1753379454337,-780.28,0.00023572,2]
[374616841,1753379454346,-997.16,0.00023572,2]
[374616842,1753379454355,-460.0,0.00023572,2]
[374616843,1753379454365,-475.55,0.00023572,2]
[374616844,1753379454374,-460.0,0.00023572,2]
[374616845,1753379454384,-3179.56,0.00023572,2]
[374616846,1753379454394,-653.68,0.00023572,2]
[374616847,1753379454404,-460.0,0.00023572,2]
[374616848,1753379454413,-534.88,0.00023572,2]
[374616849,1753379454423,-1138.0,0.00023572,2]
[374616850,1753379454432,-460.0,0.00023573,2]
[374616851,1753379454442,-460.0,0.00023573,2]
[374616852,1753379454451,-1014.02,0.00023573,2]
[374616853,1753379454460,-460.0,0.00023573,2]
[374616854,1753379454470,-820.35,0.00023573,2]
[374616855,1753379454480,-1580.94,0.00023573,2]
[374616856,1753379454489,-1718.3,0.00023573,2]
[374616857,1753379454499,-969.32,0.00023573,2]
[374616858,1753379454509,-632.48,0.00023573,2]
[374616859,1753379454519,-589.64,0.00023573,2]
[374616860,1753379454529,-460.0,0.00023573,2]
[374616861,1753379454538,-460.0,0.00023573,2]
[374616862,1753379454547,-1174.77,0.00023575,2]
[374616863,1753379454557,-183.586108,0.00023576,7]
[374616864,1753379454566,-183.586108,0.00023576,7]
[374616865,1753379454577,-151.0,0.00023576,7]
[374616866,1753379454586,-151.0,0.00023576,7]
[374616867,1753379454596,-517.02,0.00023581,4]
[374616868,1753379454606,-1213.91924661,0.0002359,9]
[374616869,1753379454616,-151.0,0.000236,5]
[374616870,1753379454626,-475.0,0.00023634,2]
[374616871,1753379454635,-534.88,0.00023672,7]
[374616872,1753379454645,-1138.0,0.00023679,2]
[374616873,1753379454654,-151.0,0.00023681,6]
[374616874,1753379454664,-151.0,0.00023681,7]
[374616875,1753379454673,-517.02,0.00023681,6]
[374616876,1753379454683,-155.0,0.00023686,2]
[374616877,1753379454692,-1087.59,0.000237,7]
[374616878,1753379454702,-1138.0,0.000237,2]
[374616879,1753379454711,-151.0,0.00023721,7]
[374616880,1753379454721,-203.597045,0.00023721,7]
[374616881,1753379454731,-151.0,0.00023721,7]
[374616882,1753379454740,-151.0,0.00023721,7]
[374616883,1753379454750,-151.0,0.00023721,7]
[374616884,1753379454759,-151.0,0.00023721,7]
[374616885,1753379454769,-151.0,0.00023721,7]
[374616886,1753379454779,-517.02,0.00023781,4]
[374616887,1753379454789,-261.59052775,0.00023785,2]
[374616888,1753379454799,-201.96851347,0.00023785,2]
[374616889,1753379454808,-559.0,0.00023785,2]